fUSD/lending_fUSD_20251001
["ID","MTS","AMOUNT","RATE_DAILY","PERIOD"]
[388641543,1759288238489,-529.95,0.000225,2]
[388641544,1759288238498,-178.26,0.00022669,2]
[388641545,1759288238507,-448.0,0.0002268,2]
[388641546,1759288238517,-150.0,0.00022711,2]
[388641547,1759288238527,-150.0,0.00022752,2]
[388641548,1759288238536,-4113.0,0.00022798,2]
[388641549,1759288238546,-411.87883501,0.00022856,2]
[388641550,1759288238555,-152.71,0.00022949,2]
[388641551,1759288238566,-483.06776945,0.0002296,2]
[388641552,1759288238576,-554.2567039,0.00023063,2]
[388641553,1759288238585,-666.0,0.00023144,3]
[388641554,1759288238595,-625.44563834,0.00023167,2]
[388641555,1759288238605,-495.68,0.0002319,30]
[388641556,1759288238615,-166.49,0.00023198,2]
[388641557,1759288238625,-696.63457279,0.00023271,2]
[388641558,1759288238635,-700.0,0.00023347,2]
[388641559,1759288238644,-767.82350723,0.00023374,2]
[388641560,1759288238653,-322.6107,0.00023393,2]
[388641561,1759288238663,-839.01244168,0.00023478,2]
[388641562,1759288238672,-448.0,0.0002353,2]
[388641563,1759288238682,-910.20137612,0.00023581,2]
[388641564,1759288238692,-981.39031057,0.00023685,2]
[388641565,1759288238702,-1052.57924502,0.00023789,2]
[388641566,1759288238712,-480.98,0.00023836,2]
[388641567,1759288238722,-1123.76817946,0.00023892,2]
[388641568,1759288238733,-975.82576321,0.00023899,3]
[388641569,1759288238742,-2500.0,0.000239,2]
[388641570,1759288238752,-1952.9986,0.000239,2]
[388641571,1759288238763,-2531.09580531,0.00023946,2]
[388641572,1759288238773,-230.0,0.00023961,2]
[388641573,1759288238783,-166.16,0.0002399,2]
[388641574,1759288238794,-1194.95711391,0.00023996,2]
[388641575,1759288239191,-151.0,0.00023997,7]
[388641576,1759288239217,-285.50757528,0.00023999,2]
[388641577,1759288239228,-175.46835621,0.00023999,2]
[388641578,1759288239238,-500.0,0.00023999,2]
[388641579,1759288239248,-169.23391537,0.00023999,2]
[388641580,1759288240348,-302.77854657,0.00023999,2]
[388641581,1759288240508,-27.98753806,0.00023999,2]
[388641582,1759288240519,-295.41266351,0.00023999,2]
[388641583,1759288246368,-409.243274,0.00020059,2]
[388641584,1759288246474,-733.73105,0.00020059,2]
[388641585,1759288258967,177.0,0.00030137,120]
[388641587,1759288583240,155.68,0.00011066,2]
[388641588,1759288583453,155.68,0.00011803,2]
[388641589,1759288583655,155.68,0.00012541,2]
[388641590,1759288583880,155.68,0.00013279,2]
[388641591,1759288584117,155.68,0.00014016,2]
[388641592,1759288584338,155.68,0.00014754,2]
[388641593,1759288584549,155.68,0.00015492,2]
[388641594,1759288584824,155.68,0.00016229,2]
[388641595,1759289120624,-155.68,0.00016967,2]
[388641596,1759289120650,-43.54,0.00017362,2]
[388641597,1759289163506,1613.63495284,8e-05,2]
[388641598,1759289225046,1517.64,0.000153,2]
[388641599,1759289301311,386.62959001,7.888e-05,2]
[388641603,1759289361995,166.49,0.00014797,2]
[388641617,1759289432579,-250.0,0.00017,2]
[388641618,1759289432589,-20063.45219365,0.00017362,2]
[388641619,1759289432600,-8150.96471468,0.00017362,2]
[388641620,1759289432610,-18260.71284168,0.00017365,2]
[388641621,1759289432641,-22017.08877528,0.00017365,2]
[388641622,1759289437372,-2749.52344968,0.00017365,2]
[388641623,1759289437430,-878.9208418,0.00017365,2]
[388641624,1759289437487,-1129.68842053,0.00017365,2]
[388641625,1759289437539,-106217.8079387,0.00017365,2]
[388641626,1759289437551,-15763.53897875,0.00017365,2]
[388641649,1759289443443,-2475.04553571,0.00017365,2]
[388641650,1759289443452,-18833.24685507,0.00017368,2]
[388641651,1759289443464,-347.61635406,0.00017368,2]
[388641652,1759289443473,-7410.5938447,0.00017369,2]
[388641653,1759289445721,-298.89912792,0.00017369,2]
[388641654,1759289445776,-372.21296643,0.00017369,2]
[388641655,1759289445849,-758.69475089,0.00017369,2]
[388641657,1759289508097,169.37,9.255e-05,2]
[388641658,1759289508172,169.37,0.00010798,2]
[388641659,1759289508285,169.37,0.00012341,2]
[388641660,1759289508494,169.37,0.00013883,2]
[388641661,1759289508697,169.37,0.00015426,2]
[388641662,1759289546701,289.14793703,0.00030137,120]
[388641663,1759289619088,-152.0,0.00016968,2]
[388641664,1759289622368,-17.37,0.00016968,2]
[388641666,1759289709907,10000.0,0.00015,2]
[388641667,1759289767661,-220.32502023,0.00017,2]
[388641668,1759289773057,-212.7446153,0.00017,2]
[388641669,1759289775217,-266.93036447,0.00017,2]
[388641672,1759290336406,-182.25,0.00017,2]
[388641673,1759290336428,-1.25748255,0.00017352,2]
[388641674,1759290341109,-154.879725,0.0001726,2]
[388641675,1759290341133,-9.970275,0.00017352,2]
[388641676,1759290401128,-185.36281974,0.000172,2]
[388641677,1759290404574,-166.34667026,0.000172,2]
[388641678,1759290496348,170.49,9.402e-05,2]
[388641679,1759290496565,170.49,0.00011282,2]
[388641680,1759290496762,170.49,0.00013162,2]
[388641681,1759290496972,170.49,0.00015043,2]
[388641682,1759290524331,-152.0,0.00016923,2]
[388641683,1759290527741,-18.49,0.00016923,2]
[388641684,1759290631869,-552.589575,0.00017369,2]
[388641685,1759290631880,-10115.14836381,0.00017369,2]
[388641686,1759290631889,-168.20989324,0.00017372,2]
[388641687,1759290631899,-238.87577567,0.00017374,2]
[388641688,1759290631908,-295.70595104,0.00017374,2]
[388641689,1759290631917,-13064.32612541,0.00017374,2]
[388641690,1759290631926,-295.70595104,0.00017374,2]
[388641691,1759290631936,-168.20989324,0.00017376,2]
[388641692,1759290631946,-1720.54156883,0.00017378,2]
[388641693,1759290631961,-7001.78792166,0.00017378,2]
[388641694,1759290631976,-875.81837655,0.00017378,2]
[388641695,1759290631985,-323.51752785,0.00017383,2]
[388641696,1759290631994,-168.20989324,0.00017384,2]
[388641697,1759290632008,-12462.55705875,0.00017384,2]
[388641698,1759290632041,-494.15426274,0.00017384,2]
[388641699,1759290632068,-4363.34296429,0.00017384,2]
[388641796,1759290637696,-366.86698472,0.00017384,2]
[388641797,1759290637707,-605.34770355,0.00017384,2]
[388641798,1759290637718,-741.9412004,0.00017384,2]
[388641799,1759290637856,-521.64109096,0.00017384,2]
[388641847,1759290640201,-915.6857705,0.00017384,2]
[388641848,1759290640637,-400.0,0.00017384,2]
[388641849,1759290640668,-938.49308796,0.00017384,2]
[388641850,1759290640682,-922.65366753,0.00017384,2]
[388641851,1759290640692,-254.87399998,0.00017384,2]
[388641852,1759290640711,-297.7262798,0.00017384,2]
[388641853,1759290640722,-682.60523184,0.00017384,2]
[388641855,1759290642897,-4171.0,0.00017384,2]
[388641856,1759290642909,-23843.10821323,0.00017384,2]
[388641857,1759290642950,-2492.11887495,0.00017384,2]
[388641858,1759290643004,-716.73120004,0.00017384,2]
[388641859,1759290643019,-670.6465161,0.00017384,2]
[388641860,1759290643121,-1287.54337234,0.00017384,2]
[388641861,1759290643132,-482.01847298,0.00017384,2]
[388641862,1759290643147,-346.47653498,0.00017384,2]
[388641863,1759290643159,-3275.66921584,0.00017384,2]
[388641864,1759290645762,-787.05381523,0.00017384,2]
[388641865,1759290645868,-562.35062125,0.00017384,2]
[388641866,1759290645879,-706.3250007,0.00017384,2]
[388641867,1759290645923,-2281.91927912,0.00017384,2]
[388641868,1759290645934,-90260.48173053,0.00017384,2]
[388641869,1759290646029,-1322.76162382,0.00017384,2]
[388641870,1759290646041,-1385.8385,0.00017384,2]
[388641871,1759290646136,-515.77023967,0.00017384,2]
[388641872,1759290842996,-404.12115859,0.00017209,2]
[388641873,1759290845827,-295.55784868,0.00017209,2]
[388641874,1759290848442,-104.13282073,0.00017209,2]
[388641875,1759291100744,-217.92807078,0.00017,2]
[388641876,1759291702546,159.92,8.565e-05,2]
[388641877,1759291702747,159.92,9.789e-05,2]
[388641878,1759291702946,159.92,0.00011012,2]
[388641879,1759291703280,159.92,0.00012236,2]
[388641880,1759291703847,159.92,0.00013459,2]
[388641881,1759291703951,159.92,0.00014683,2]
[388641882,1759291704141,159.92,0.00015907,2]
[388641883,1759291832341,-803.811828,0.00016915,2]
[388641884,1759291832351,-32.07192922,0.00017,2]
[388641899,1759291832752,-478.79865805,0.00017,2]
[388641900,1759291832762,-197.42,0.00017062,2]
[388641901,1759291832772,-150.0,0.00017073,2]
[388641902,1759291832781,-2843.5,0.00017077,2]
[388641903,1759291832790,-718.48,0.00017078,2]
[388641904,1759291832801,-159.92,0.0001713,2]
[388641905,1759291832810,-172.0,0.000172,2]
[388641906,1759291832819,-293.09124,0.0001721,2]
[388641907,1759291832828,-500.0,0.00017294,2]
[388641908,1759291832840,-1200.0,0.00017294,2]
[388641909,1759291832849,-1200.0,0.00017295,2]
[388641910,1759291832858,-300.0,0.00017295,2]
[388641911,1759291832868,-300.0,0.00017295,2]
[388641912,1759291832878,-250.0,0.00017295,2]
[388641913,1759291832888,-7534.85,0.00017296,2]
[388641914,1759291832898,-684.25,0.00017298,2]
[388641915,1759291832907,-1680.0,0.000173,2]
[388641916,1759291832917,-942.04773757,0.0001732,2]
[388641921,1759291837871,-57.95226243,0.0001732,2]
[388641922,1759291837882,-231.71,0.00017327,2]
[388641923,1759291837891,-500.0,0.00017367,2]
[388641924,1759291837900,-151.0,0.00017371,2]
[388641925,1759291837909,-151.0,0.00017371,2]
[388641926,1759291837919,-33.93773957,0.00017371,2]
[388641927,1759291837945,-246.48588669,0.00017371,2]
[388641928,1759291837955,-151.0,0.00017371,2]
[388641929,1759291837964,-151.0,0.00017378,2]
[388641930,1759291837973,-2983.3976512,0.00017381,2]
[388641931,1759291837983,-4761.9630519,0.00017381,2]
[388641932,1759291837992,-10416.62426833,0.00017384,2]
[388641933,1759291838001,-500.0,0.00017384,2]
[388641934,1759291838010,-503.44190151,0.00017384,2]
[388641935,1759291838020,-323.51752785,0.00017386,2]
[388641936,1759291838030,-13862.56971252,0.00017388,2]
[388641937,1759291838042,-4656.83556769,0.00017388,2]
[388641942,1759291839883,-661.45792892,0.00017388,2]
[388641943,1759291839894,-690.34093911,0.00017388,2]
[388641952,1759291842008,-2994.88902451,0.00017388,2]
[388641953,1759291842021,-2559.24014845,0.00017388,2]
[388641954,1759291842051,-263.26395815,0.00017388,2]
[388641957,1759291842790,-5684.19113197,0.00017388,2]
[388641958,1759291842833,-2010.68897854,0.00017388,2]
[388641969,1759291843981,-155289.7126014,0.00017388,2]
[388641971,1759291843993,-1608.39633385,0.00017388,2]
[388641972,1759291844003,-13064.32612541,0.00017389,2]
[388641973,1759291844012,-1409.71165593,0.00017391,2]
[388641974,1759291844021,-316.04066707,0.00017395,2]
[388641975,1759291844031,-168.20989324,0.00017395,2]
[388641976,1759291844041,-1409.71165593,0.00017396,2]
[388641977,1759291844050,-2904.31630588,0.000174,2]
[388641978,1759291844059,-4795.21580231,0.00017401,2]
[388641979,1759291844069,-3352.52722078,0.00017402,2]
[388641980,1759291844078,-4795.21580231,0.00017406,2]
[388641981,1759291844087,-37438.68155834,0.00017409,2]
[388641982,1759291844371,1430.72745855,0.000165,2]
[388641988,1759291845991,-703.47500868,0.00017409,2]
[388641991,1759291927211,10000.0,0.0003013,120]
[388641992,1759292446653,717.27,0.0003013,120]
[388641993,1759292485482,159.0,0.000301,120]
[388641994,1759292487063,159.0,0.000301,120]
[388641995,1759292487899,159.0,0.000301,120]
[388641997,1759292710972,350.74694134,0.000154,2]
[388641998,1759292761927,4381.0988626,8e-05,2]
[388641999,1759292761947,6162.57326249,8e-05,2]
[388642000,1759292761968,1468.75540109,8e-05,2]
[388642001,1759292766354,4693.8178614,0.00011,2]
[388642002,1759292766376,4610.11159955,0.00011,2]
[388642003,1759292788389,1552.46166294,0.00015,2]
[388642004,1759292788411,467.71149753,0.00015,2]
[388642005,1759292827723,1428.81000956,0.00015,2]
[388642006,1759292837383,792.82075681,0.0001305,2]
[388642007,1759292891868,369.19571865,0.000135,2]
[388642008,1759292919485,2480.77714308,0.00015,2]
[388642009,1759292921105,160.96128329,0.00012,2]
[388642010,1759292941188,52000.0,0.00030137,120]
[388642031,1759293032258,-512.17880541,0.0001699,2]
[388642032,1759293032268,-250.0,0.00016994,2]
[388642033,1759293032278,-151.0,0.00016997,2]
[388642034,1759293032288,-300.0,0.00016998,2]
[388642035,1759293032297,-1200.0,0.00016998,2]
[388642036,1759293032307,-300.0,0.00016998,2]
[388642037,1759293032320,-550.0,0.00016998,2]
[388642038,1759293032329,-1000.0,0.00016999,2]
[388642039,1759293032339,-178.18608201,0.00016999,2]
[388642040,1759293032348,-500.0,0.00016999,2]
[388642041,1759293032359,-231.70036977,0.00016999,2]
[388642042,1759293032370,-299.38122649,0.00016999,2]
[388642043,1759293032380,-500.0,0.00016999,2]
[388642044,1759293032390,-500.0,0.00016999,2]
[388642045,1759293032400,-500.0,0.00016999,2]
[388642046,1759293032410,-500.0,0.00016999,2]
[388642047,1759293032420,-500.0,0.00016999,2]
[388642048,1759293032429,-500.0,0.00016999,2]
[388642049,1759293032438,-500.0,0.00016999,2]
[388642050,1759293032448,-500.0,0.00016999,2]
[388642051,1759293032457,-500.0,0.00016999,2]
[388642052,1759293032467,-500.0,0.00016999,2]
[388642053,1759293032477,-500.0,0.00016999,2]
[388642054,1759293032486,-500.0,0.00016999,2]
[388642055,1759293032496,-500.0,0.00016999,2]
[388642056,1759293032506,-265.53968328,0.00016999,2]
[388642057,1759293032516,-500.0,0.00016999,2]
[388642058,1759293032525,-54180.39,0.00017,2]
[388642059,1759293032535,-250.0,0.00017,2]
[388642060,1759293032544,-200.0,0.00017021,2]
[388642061,1759293032554,-157.93,0.00017066,2]
[388642062,1759293032563,-150.0,0.00017077,2]
[388642063,1759293032572,-169.0,0.000171,2]
[388642064,1759293032582,-1000.0,0.00017124,2]
[388642065,1759293032591,-250.0,0.00017165,2]
[388642066,1759293032600,-203.57,0.00017228,2]
[388642067,1759293032610,-1679.0,0.000173,2]
[388642068,1759293032621,-159.0,0.000173,2]
[388642069,1759293032630,-159.0,0.000173,2]
[388642070,1759293032640,-159.0,0.000173,2]
[388642071,1759293032649,-159.0,0.000173,2]
[388642072,1759293032658,-1742.19,0.00017341,2]
[388642073,1759293032667,-1852.2531282,0.00017386,2]
[388642074,1759293032677,-1342.7394773,0.00017386,2]
[388642075,1759293032686,-151.0,0.00017391,2]
[388642076,1759293032695,-1346.16,0.00017394,2]
[388642077,1759293032704,-1000.0,0.00017409,2]
[388642078,1759293032713,-1000.0,0.00017409,2]
[388642079,1759293032722,-1000.0,0.00017409,2]
[388642080,1759293032732,-1000.0,0.00017409,2]
[388642081,1759293032741,-1000.0,0.00017409,2]
[388642082,1759293032750,-1000.0,0.00017409,2]
[388642083,1759293032760,-1000.0,0.00017409,2]
[388642084,1759293032769,-1000.0,0.00017409,2]
[388642085,1759293032779,-1000.0,0.00017409,2]
[388642086,1759293032788,-1000.0,0.00017409,2]
[388642087,1759293032798,-1000.0,0.00017409,2]
[388642088,1759293032808,-1000.0,0.00017409,2]
[388642089,1759293032817,-1000.0,0.00017409,2]
[388642090,1759293032827,-1000.0,0.00017409,2]
[388642091,1759293032836,-1000.0,0.00017409,2]
[388642092,1759293032845,-1000.0,0.00017409,2]
[388642093,1759293032854,-1000.0,0.00017409,2]
[388642094,1759293032865,-1000.0,0.00017409,2]
[388642095,1759293032874,-347.46142216,0.00017409,2]
[388642100,1759293038149,-46.82198675,0.00017409,2]
[388642101,1759293038160,-500.0,0.00017409,2]
[388642102,1759293038170,-164.68582009,0.00017409,2]
[388642103,1759293038180,-548.0,0.00017409,2]
[388642104,1759293038190,-150.0,0.00017409,2]
[388642105,1759293038200,-294.60395195,0.00017409,2]
[388642106,1759293038209,-155.66160836,0.00017409,2]
[388642107,1759293038219,-150.0,0.00017409,2]
[388642108,1759293038228,-302.86095,0.00017409,2]
[388642109,1759293038237,-60557.34028683,0.00017409,2]
[388642110,1759293040063,-2928.3945768,0.00017409,2]
[388642111,1759293040075,-1058.33633602,0.00017409,2]
[388642113,1759293043519,-392.29490377,0.00017409,2]
[388642114,1759293088124,160.84,0.0001699,30]
[388642116,1759293130370,-303.72988053,0.00017397,2]
[388642118,1759293232091,179.31,8.69e-05,2]
[388642119,1759293232315,179.31,9.148e-05,2]
[388642120,1759293232517,103.67685357,9.605e-05,2]
[388642121,1759293232541,75.63314643,9.605e-05,2]
[388642122,1759293232716,179.31,0.00010063,2]
[388642123,1759293232916,179.31,0.0001052,2]
[388642124,1759293233114,179.31,0.00010977,2]
[388642125,1759293233517,179.31,0.00011435,2]
[388642126,1759293233729,179.31,0.00011892,2]
[388642127,1759293234112,179.31,0.0001235,2]
[388642128,1759293234190,179.31,0.00012807,2]
[388642129,1759293234392,179.31,0.00013264,2]
[388642130,1759293234590,179.31,0.00013722,2]
[388642131,1759293234797,179.31,0.00014179,2]
[388642132,1759293235005,179.31,0.00014637,2]
[388642133,1759293235200,179.31,0.00015094,2]
[388642134,1759293235431,179.31,0.00015551,2]
[388642135,1759293235627,179.31,0.00016009,2]
[388642136,1759293235825,179.31,0.00016466,2]
[388642139,1759293698746,-179.31,0.00016924,2]
[388642140,1759293698772,-56.64514286,0.00017058,2]
[388642142,1759293884410,456.46,0.00016617,2]
[388642143,1759293939119,202.0,0.00016617,2]
[388642144,1759293999590,300.0,0.00016,3]
[388642145,1759294010274,436.72616,0.00030136,120]
[388642147,1759294105060,-302.65,0.00016737,2]
[388642148,1759294105079,-609.56083232,0.000169,2]
[388642149,1759294105099,-340.36362193,0.000169,2]
[388642150,1759294105118,-1443.35485714,0.00016907,2]
[388642151,1759294105137,-473.99656134,0.00016914,2]
[388642152,1759294105157,-14719.88594477,0.00016914,2]
[388642153,1759294105186,-151.0,0.00016997,2]
[388642154,1759294105208,-151.0,0.00016997,2]
[388642155,1759294105229,-1200.0,0.00016998,2]
[388642156,1759294105250,-300.0,0.00016998,2]
[388642157,1759294105271,-237.34254983,0.00016999,2]
[388642158,1759294105292,-500.0,0.00016999,2]
[388642159,1759294105311,-198.02857344,0.00016999,2]
[388642160,1759294105331,-254.56839478,0.00016999,2]
[388642161,1759294105350,-169.55251522,0.00016999,2]
[388642162,1759294105371,-176.26975879,0.00016999,2]
[388642163,1759294105392,-351.18960044,0.00016999,2]
[388642164,1759294105414,-500.0,0.00016999,2]
[388642165,1759294105437,-362.83774259,0.00016999,2]
[388642166,1759294105459,-329086.62022106,0.00016999,2]
[388642167,1759294105479,-170.0,0.00017,2]
[388642168,1759294105499,-250000.0,0.00017,2]
[388642169,1759294171654,359.24,0.00016714,2]
[388642170,1759294173843,150.0,0.00015313,2]
[388642171,1759294194642,155.64,8.388e-05,2]
[388642172,1759294194848,155.64,8.881e-05,2]
[388642173,1759294195046,155.64,9.375e-05,2]
[388642174,1759294195260,155.64,9.868e-05,2]
[388642175,1759294195486,155.64,0.00010361,2]
[388642176,1759294195706,155.64,0.00010855,2]
[388642177,1759294195935,155.64,0.00011348,2]
[388642178,1759294196166,155.64,0.00011842,2]
[388642179,1759294196366,155.64,0.00012335,2]
[388642180,1759294196712,155.64,0.00012828,2]
[388642181,1759294196867,155.64,0.00013322,2]
[388642182,1759294197001,155.64,0.00013815,2]
[388642183,1759294197236,155.64,0.00014309,2]
[388642184,1759294197413,155.64,0.00014802,2]
[388642185,1759294197606,155.64,0.00015295,2]
[388642186,1759294197824,155.64,0.00015789,2]
[388642187,1759294198038,155.64,0.00016282,2]
[388642188,1759294198236,155.64,0.00016776,2]
[388642189,1759294227222,164.31,0.00016813,2]
[388642195,1759294232212,-167.21,0.00017014,2]
[388642196,1759294232222,-179.009031,0.00017157,2]
[388642197,1759294232233,-555.93948206,0.00017157,2]
[388642198,1759294232247,-265.05148694,0.00017157,2]
[388642199,1759294232256,-157.31,0.00017193,2]
[388642200,1759294232265,-288.13,0.0001725,2]
[388642201,1759294232273,-461.52,0.00017253,2]
[388642202,1759294232283,-200.0,0.00017269,2]
[388642203,1759294232292,-200.0,0.0001727,2]
[388642204,1759294232301,-166.89,0.00017301,2]
[388642205,1759294232311,-1230.15857825,0.00017374,2]
[388642206,1759294232320,-179.31,0.00017381,2]
[388642207,1759294232330,-151.0,0.00017388,2]
[388642208,1759294232339,-166.17,0.00017388,2]
[388642209,1759294232348,-288.43,0.00017388,2]
[388642210,1759294232358,-646.45643489,0.00017388,2]
[388642211,1759294232371,-583.70214336,0.00017388,2]
[388642212,1759294232380,-151.0,0.00017395,2]
[388642213,1759294232390,-995.89187787,0.00017397,2]
[388642214,1759294232399,-300.0,0.00017397,2]
[388642215,1759294232408,-1200.0,0.00017397,2]
[388642216,1759294232418,-528.19787635,0.00017397,2]
[388642217,1759294232427,-166.13978488,0.00017397,2]
[388642218,1759294232436,-245.83272031,0.00017397,2]
[388642219,1759294232445,-32996.01700564,0.00017398,2]
[388642220,1759294232457,-3441.94359025,0.00017398,2]
[388642221,1759294232468,-2943.63357638,0.00017398,2]
[388642222,1759294232500,-77.60759223,0.00017398,2]
[388642223,1759294232509,-2708.25065001,0.00017398,2]
[388642224,1759294232528,-116.41121029,0.00017398,2]
[388642225,1759294232537,-151.0,0.00017398,2]
[388642226,1759294232547,-162.810508,0.00017398,2]
[388642227,1759294232556,-151.0,0.00017398,2]
[388642228,1759294232565,-162.810508,0.00017398,2]
[388642229,1759294232574,-162.810508,0.00017398,2]
[388642230,1759294232583,-162.810508,0.00017398,2]
[388642231,1759294232592,-151.0,0.00017398,2]
[388642232,1759294232602,-325.105941,0.00017398,2]
[388642234,1759294232611,-325.105941,0.00017398,2]
[388642236,1759294232619,-325.105941,0.00017398,2]
[388642237,1759294232628,-325.105941,0.00017398,2]
[388642239,1759294232637,-151.0,0.00017398,2]
[388642241,1759294232647,-151.0,0.00017398,2]
[388642243,1759294232656,-151.0,0.00017398,2]
[388642244,1759294232664,-196.159384,0.00017398,2]
[388642245,1759294232673,-543.939699,0.00017398,2]
[388642246,1759294232683,-543.939699,0.00017398,2]
[388642247,1759294232692,-272.18814,0.00017398,2]
[388642248,1759294232701,-543.939699,0.00017398,2]
[388642249,1759294232710,-272.18814,0.00017398,2]
[388642250,1759294232719,-543.939699,0.00017398,2]
[388642251,1759294232728,-272.18814,0.00017398,2]
[388642252,1759294232738,-272.18814,0.00017398,2]
[388642253,1759294232747,-2175.495561,0.00017398,2]
[388642254,1759294232755,-1971.74449338,0.00017398,2]
[388642255,1759294232768,-203.75106762,0.00017398,2]
[388642256,1759294232777,-2175.495561,0.00017398,2]
[388642257,1759294232787,-2175.495561,0.00017398,2]
[388642258,1759294232796,-232.37031551,0.00017398,2]
[388642259,1759294232807,-149.95002149,0.00017398,2]
[388642260,1759294232816,-382.320337,0.00017398,2]
[388642261,1759294232827,-382.320337,0.00017398,2]
[388642262,1759294232836,-382.320337,0.00017398,2]
[388642263,1759294232846,-174.183634,0.00017398,2]
[388642264,1759294232855,-151.0,0.00017398,2]
[388642265,1759294232864,-151.0,0.00017398,2]
[388642266,1759294232873,-154.035607,0.00017398,2]
[388642267,1759294232882,-151.0,0.00017398,2]
[388642268,1759294232891,-151.0,0.00017398,2]
[388642269,1759294232900,-151.0,0.00017398,2]
[388642270,1759294232909,-151.0,0.00017398,2]
[388642271,1759294232918,-151.0,0.00017398,2]
[388642272,1759294232927,-151.0,0.00017398,2]
[388642273,1759294232936,-158.148997,0.00017398,2]
[388642274,1759294232945,-151.0,0.00017398,2]
[388642275,1759294232954,-151.0,0.00017398,2]
[388642276,1759294232963,-254.831145,0.00017398,2]
[388642277,1759294232972,-1331.844798,0.00017398,2]
[388642278,1759294232980,-254.831145,0.00017398,2]
[388642279,1759294232990,-1331.844798,0.00017398,2]
[388642280,1759294232999,-151.0,0.00017398,2]
[388642281,1759294233008,-151.0,0.00017398,2]
[388642282,1759294233017,-254.831145,0.00017398,2]
[388642283,1759294233026,-1331.844798,0.00017398,2]
[388642284,1759294233035,-151.0,0.00017398,2]
[388642285,1759294233043,-254.831145,0.00017398,2]
[388642286,1759294233052,-1331.844798,0.00017398,2]
[388642287,1759294233061,-151.0,0.00017398,2]
[388642288,1759294233070,-151.0,0.00017398,2]
[388642289,1759294233079,-151.0,0.00017398,2]
[388642290,1759294233088,-151.0,0.00017398,2]
[388642291,1759294233097,-151.0,0.00017398,2]
[388642292,1759294233105,-267.884426,0.00017398,2]
[388642293,1759294233114,-205.46327797,0.00017398,2]
[388642294,1759294233125,-62.42114803,0.00017398,2]
[388642295,1759294233134,-267.884426,0.00017398,2]
[388642296,1759294233143,-267.884426,0.00017398,2]
[388642297,1759294233152,-151.0,0.00017398,2]
[388642298,1759294233161,-416.335064,0.00017398,2]
[388642299,1759294233170,-416.335064,0.00017398,2]
[388642300,1759294233180,-416.335064,0.00017398,2]
[388642301,1759294233189,-416.335064,0.00017398,2]
[388642302,1759294233198,-416.335064,0.00017398,2]
[388642303,1759294233207,-416.335064,0.00017398,2]
[388642304,1759294233215,-151.0,0.00017398,2]
[388642305,1759294233225,-151.0,0.00017398,2]
[388642306,1759294233234,-416.335064,0.00017398,2]
[388642307,1759294233242,-48.67065164,0.00017398,2]
[388642308,1759294233254,-367.66441236,0.00017398,2]
[388642309,1759294233262,-386.067727,0.00017398,2]
[388642310,1759294233271,-386.067727,0.00017398,2]
[388642311,1759294233279,-386.067727,0.00017398,2]
[388642312,1759294233288,-386.067727,0.00017398,2]
[388642313,1759294233297,-386.067727,0.00017398,2]
[388642314,1759294233306,-386.067727,0.00017398,2]
[388642315,1759294233315,-170.255334,0.00017398,2]
[388642316,1759294233324,-170.255334,0.00017398,2]
[388642317,1759294233332,-386.067727,0.00017398,2]
[388642318,1759294233342,-386.067727,0.00017398,2]
[388642319,1759294233351,-170.255334,0.00017398,2]
[388642320,1759294233361,-151.0,0.00017398,2]
[388642321,1759294233370,-170.255334,0.00017398,2]